lending/lending_fUSD_20251018
["ID","MTS","AMOUNT","RATE_DAILY","PERIOD"]
[391784087,1760808634390,-151.0,0.00032181,2]
[391784088,1760808634400,-151.0,0.00032181,2]
[391784089,1760808634410,-151.0,0.00032181,2]
[391784090,1760808634419,-200.0,0.00032181,2]
[391784091,1760808634430,-151.0,0.00032181,2]
[391784092,1760808634440,-151.0,0.00032181,2]
[391784093,1760808634449,-151.0,0.00032181,2]
[391784094,1760808634458,-151.0,0.00032181,2]
[391784095,1760808634467,-151.0,0.00032181,2]
[391784096,1760808634477,-151.0,0.00032181,2]
[391784097,1760808634486,-1000.0,0.00032181,2]
[391784098,1760808634500,-151.0,0.00032181,2]
[391784099,1760808634510,-151.0,0.00032181,2]
[391784100,1760808634519,-1000.0,0.00032181,2]
[391784101,1760808634529,-151.0,0.00032181,2]
[391784102,1760808634538,-151.0,0.00032181,2]
[391784103,1760808634547,-750.0,0.00032181,2]
[391784104,1760808634556,-151.0,0.00032181,2]
[391784105,1760808634566,-151.0,0.00032181,2]
[391784106,1760808634575,-151.0,0.00032181,2]
[391784107,1760808634584,-151.0,0.00032181,2]
[391784108,1760808634593,-151.0,0.00032181,2]
[391784109,1760808634603,-151.0,0.00032181,2]
[391784110,1760808634614,-151.0,0.00032181,2]
[391784111,1760808634623,-151.0,0.00032181,2]
[391784112,1760808634632,-151.0,0.00032181,2]
[391784113,1760808634641,-151.0,0.00032181,2]
[391784114,1760808634651,-151.0,0.00032181,2]
[391784115,1760808634663,-154.93545532,0.00032181,2]
[391784116,1760808634672,-250.0,0.00032181,2]
[391784117,1760808634683,-250.0,0.00032181,2]
[391784118,1760808634692,-250.0,0.00032181,2]
[391784119,1760808634702,-250.0,0.00032181,2]
[391784120,1760808634713,-250.0,0.00032181,2]
[391784121,1760808634723,-250.0,0.00032181,2]
[391784122,1760808634734,-250.0,0.00032181,2]
[391784123,1760808634744,-250.0,0.00032181,2]
[391784124,1760808634753,-250.0,0.00032181,2]
[391784125,1760808634763,-250.0,0.00032181,2]
[391784126,1760808634774,-250.0,0.00032181,2]
[391784127,1760808634783,-4222.74445175,0.00032199,2]
[391784128,1760808634794,-1689.87575773,0.00032199,2]
[391784129,1760808634803,-2000.0,0.000322,10]
[391784130,1760808634813,-11388.15932565,0.000322,2]
[391784131,1760808634828,-3281.83297435,0.000322,2]
[391784132,1760808634837,-1000.0,0.000322,2]
[391784133,1760808634846,-1053.8687,0.000322,2]
[391784134,1760808634856,-889.90910581,0.000322,2]
[391784135,1760808634867,-110.09089419,0.000322,2]
[391784136,1760808634876,-4931.67526435,0.000322,2]
[391784137,1760808634888,-68.32473565,0.000322,2]
[391784138,1760808634897,-2038.06744982,0.000322,2]
[391784139,1760808634910,-461.93255018,0.000322,2]
[391784140,1760808634919,-1375.59859465,0.00032229,2]
[391784141,1760808634931,-1486.16025447,0.00032229,2]
[391784142,1760808634942,-271.23458964,0.00032229,2]
[391784143,1760808634953,-274.923,0.00032229,2]
[391784144,1760808634969,-814.82801295,0.00032229,2]
[391784145,1760808634981,-1689.87575769,0.00032229,2]
[391784146,1760808634991,-1163.4,0.00032232,2]
[391784147,1760808635000,-314.02,0.00032232,2]
[391784148,1760808635010,-150.99,0.00032232,2]
[391784149,1760808635019,-999.99,0.00032232,2]
[391784150,1760808635030,-1290.14,0.00032232,2]
[391784151,1760808635040,-709.57622936,0.00032232,2]
[391784157,1760808638095,-637.34393449,0.00016438,2]
[391784158,1760808638105,-80.85606551,0.00023885,2]
[391784159,1760808638203,-191.14393449,0.00023885,2]
[391784160,1760808638213,-785.0,0.00030173,2]
[391784161,1760808638223,-1366.32377064,0.00032232,2]
[391784162,1760808638233,-924.16,0.00032232,2]
[391784163,1760808638243,-9999.99,0.00032232,2]
[391784164,1760808638252,-2349.05,0.00032232,2]
[391784165,1760808638262,-3789.25,0.00032232,2]
[391784166,1760808638272,-2932.67,0.00032232,2]
[391784167,1760808638281,-4222.74445171,0.00032258,2]
[391784168,1760808638290,-1689.87575769,0.00032258,2]
[391784169,1760808638300,-223.26,0.0003228,7]
[391784170,1760808638311,-150.27,0.00032288,2]
[391784172,1760808638322,-4222.74445171,0.00032288,2]
[391784174,1760808638332,-1689.87575769,0.00032288,2]
[391784176,1760808638342,-150.27,0.00032289,2]
[391784178,1760808638351,-241.05377133,0.0003229,2]
[391784180,1760808638367,-150.27,0.0003229,2]
[391784182,1760808638383,-150.27,0.0003229,2]
[391784184,1760808638398,-150.27,0.0003229,2]
[391784186,1760808638408,-150.27,0.0003229,2]
[391784188,1760808638418,-18030.78311983,0.00032294,15]
[391784190,1760808638429,-145520.83682838,0.00032294,15]
[391784192,1760808638441,-2629.97761171,0.00032294,15]
[391784360,1760808640171,-305.0000025,0.00032294,15]
[391784392,1760808640332,-395.472,0.00032294,15]
[391784458,1760808640865,-1.6e-07,0.00032294,15]
[391784482,1760808641110,-314.17,0.00028073,30]
[391784484,1760808641119,-4449.83405681,0.00032294,15]
[391784489,1760808641163,-7588.89493243,0.00032294,15]
[391784492,1760808641176,-9573.20771772,0.00032294,15]
[391784494,1760808641187,-2090.40897658,0.00032294,15]
[391784496,1760808641198,-84116.03808384,0.00032294,15]
[391784498,1760808641208,-272669.54104974,0.00032294,2]
[391784500,1760808641218,-151.0,0.00032297,30]
[391784502,1760808641227,-188.257185,0.00032297,30]
[391784504,1760808641236,-151.0,0.00032297,30]
[391784506,1760808641245,-188.257185,0.00032297,30]
[391784508,1760808641254,-188.257185,0.00032297,30]
[391784510,1760808641263,-151.0,0.00032297,30]
[391784512,1760808641272,-151.0,0.00032297,30]
[391784514,1760808641281,-151.0,0.00032297,30]
[391784516,1760808641291,-188.257185,0.00032297,30]
[391784518,1760808641300,-151.0,0.00032297,30]
[391784520,1760808641310,-151.0,0.00032297,30]
[391784522,1760808641319,-151.0,0.00032297,30]
[391784524,1760808641328,-151.0,0.00032297,30]
[391784525,1760808641337,-151.0,0.00032297,30]
[391784527,1760808641347,-151.0,0.00032297,30]
[391784529,1760808641356,-151.0,0.00032297,30]
[391784531,1760808641365,-151.0,0.00032297,30]
[391784533,1760808641374,-151.0,0.00032297,30]
[391784535,1760808641383,-151.0,0.00032297,30]
[391784537,1760808641392,-151.0,0.00032297,30]
[391784539,1760808641401,-151.0,0.00032297,30]
[391784541,1760808641410,-151.0,0.00032297,30]
[391784543,1760808641419,-151.0,0.00032297,30]
[391784545,1760808641428,-307489.26578681,0.00032298,4]
[391784547,1760808641437,-163.9715362,0.00032298,2]
[391784549,1760808641446,-11418.9164404,0.00032298,2]
[391784551,1760808641455,-500.0,0.00032298,2]
[391784553,1760808641464,-500.0,0.00032298,2]
[391784555,1760808641474,-500.0,0.00032298,2]
[391784557,1760808641483,-500.0,0.00032298,2]
[391784559,1760808641494,-6916.11,0.00032298,2]
[391784561,1760808641504,-569.81962301,0.00032298,2]
[391784563,1760808641513,-500.0,0.00032298,2]
[391784565,1760808641523,-365.373729,0.00032298,30]
[391784567,1760808641532,-365.373729,0.00032298,30]
[391784569,1760808641542,-365.373729,0.00032298,30]
[391784571,1760808641551,-365.373729,0.00032298,30]
[391784573,1760808641559,-365.373729,0.00032298,30]
[391784575,1760808641572,-365.373729,0.00032298,30]
[391784577,1760808641581,-365.373729,0.00032298,30]
[391784579,1760808641590,-365.373729,0.00032298,30]
[391784580,1760808641599,-500.0,0.00032298,2]
[391784582,1760808641608,-3424.26,0.00032298,2]
[391784584,1760808641617,-151.0,0.00032298,30]
[391784586,1760808641627,-151.0,0.00032298,30]
[391784588,1760808641636,-151.0,0.00032298,30]
[391784590,1760808641646,-151.0,0.00032298,30]
[391784592,1760808641656,-151.0,0.00032298,30]
[391784593,1760808641666,-151.0,0.00032298,30]
[391784595,1760808641676,-275.117524,0.00032298,30]
[391784597,1760808641687,-151.0,0.00032298,30]
[391784599,1760808641698,-151.0,0.00032298,30]
[391784601,1760808641708,-151.0,0.00032298,30]
[391784603,1760808641720,-151.0,0.00032298,30]
[391784605,1760808641735,-151.0,0.00032298,30]
[391784607,1760808641751,-151.0,0.00032298,30]
[391784609,1760808641762,-248.89336366,0.00032298,30]
[391784611,1760808641774,-151.0,0.00032298,30]
[391784612,1760808641785,-151.0,0.00032298,30]
[391784613,1760808641796,-151.0,0.00032298,30]
[391784614,1760808641809,-151.0,0.00032298,30]
[391784615,1760808641822,-151.379112,0.00032298,30]
[391784616,1760808641833,-151.0,0.00032298,30]
[391784617,1760808641844,-151.0,0.00032298,30]
[391784618,1760808641855,-151.0,0.00032298,30]
[391784619,1760808641867,-151.0,0.00032298,30]
[391784620,1760808641879,-151.0,0.00032298,30]
[391784621,1760808641889,-151.0,0.00032298,30]
[391784622,1760808641898,-151.0,0.00032298,30]
[391784623,1760808641907,-151.0,0.00032298,30]
[391784624,1760808641917,-151.0,0.00032298,30]
[391784625,1760808641927,-299.515916,0.00032298,30]
[391784626,1760808641936,-151.0,0.00032298,30]
[391784627,1760808641945,-151.0,0.00032298,30]
[391784628,1760808641953,-151.0,0.00032298,30]
[391784629,1760808641961,-151.0,0.00032298,30]
[391784630,1760808641971,-151.0,0.00032298,30]
[391784631,1760808641981,-151.0,0.00032298,30]
[391784632,1760808641997,-1181.21,0.00032298,2]
[391784633,1760808642007,-151.0,0.00032298,30]
[391784634,1760808642017,-1181.21,0.00032298,2]
[391784635,1760808642027,-1181.21,0.00032298,2]
[391784636,1760808642037,-151.169101,0.00032298,30]
[391784637,1760808642047,-188.257185,0.00032298,30]
[391784638,1760808642057,-151.0,0.00032298,30]
[391784639,1760808642068,-188.257185,0.00032298,30]
[391784640,1760808642078,-188.257185,0.00032298,30]
[391784641,1760808642088,-151.0,0.00032298,30]
[391784642,1760808642097,-188.257185,0.00032298,30]
[391784643,1760808642106,-151.0,0.00032298,30]
[391784644,1760808642116,-151.0,0.00032298,30]
[391784645,1760808642126,-151.0,0.00032298,30]
[391784646,1760808642136,-151.0,0.00032298,30]
[391784647,1760808642145,-301.99999976,0.00032298,30]
[391784648,1760808642154,-300.0,0.00032299,10]
[391784649,1760808642164,-666.0,0.00032299,10]
[391784650,1760808642173,-500.0,0.00032299,2]
[391784651,1760808642182,-500.0,0.00032299,2]
[391784652,1760808642192,-500.0,0.00032299,2]
[391784653,1760808642201,-500.0,0.00032299,2]
[391784654,1760808642210,-500.0,0.00032299,2]
[391784655,1760808642220,-500.0,0.00032299,2]
[391784656,1760808642230,-500.0,0.00032299,2]
[391784657,1760808642243,-455.76432331,0.00032299,2]
[391784658,1760808642253,-500.0,0.00032299,2]
[391784659,1760808642262,-500.0,0.00032299,2]
[391784660,1760808642271,-500.0,0.00032299,2]
[391784661,1760808642280,-500.0,0.00032299,2]
[391784662,1760808642289,-500.0,0.00032299,2]
[391784663,1760808642298,-500.0,0.00032299,2]
[391784664,1760808642308,-1273.45,0.00032299,2]
[391784665,1760808642317,-501.8975631,0.00032299,2]
[391784666,1760808642326,-500.0,0.00032299,2]
[391784667,1760808642335,-500.0,0.00032299,2]
[391784668,1760808642344,-500.0,0.00032299,2]
[391784669,1760808642353,-648.62,0.00032299,2]
[391784670,1760808642362,-500.0,0.00032299,2]
[391784671,1760808642372,-500.0,0.00032299,2]
[391784672,1760808642381,-500.0,0.00032299,2]
[391784673,1760808642391,-1592.8,0.00032299,2]
[391784674,1760808642400,-561.21,0.00032299,2]
[391784675,1760808642410,-561.21,0.00032299,2]
[391784676,1760808642419,-500.0,0.00032299,2]
[391784677,1760808642429,-500.0,0.00032299,2]
[391784678,1760808642438,-500.0,0.00032299,2]
[391784679,1760808642447,-500.0,0.00032299,2]
[391784680,1760808642456,-500.0,0.00032299,2]
[391784681,1760808642465,-500.0,0.00032299,2]
[391784682,1760808642476,-324.93474054,0.00032299,2]
[391784683,1760808642489,-322.02,0.00032299,2]
[391784684,1760808642504,-999.0,0.00032299,120]
[391784685,1760808642513,-500.0,0.00032299,2]
[391784686,1760808642523,-500.0,0.00032299,2]
[391784687,1760808642532,-561.0,0.00032299,2]
[391784688,1760808642541,-1000.0,0.00032299,2]
[391784689,1760808642551,-500.0,0.00032299,2]
[391784690,1760808642560,-500.0,0.00032299,2]
[391784691,1760808642570,-500.0,0.00032299,2]
[391784692,1760808642581,-500.0,0.00032299,2]
[391784693,1760808642590,-500.0,0.00032299,2]
[391784694,1760808642599,-500.0,0.00032299,2]
[391784695,1760808642608,-500.0,0.00032299,2]
[391784696,1760808642618,-500.0,0.00032299,2]
[391784697,1760808642627,-1181.21,0.00032299,2]
[391784698,1760808642637,-1181.21,0.00032299,2]
[391784699,1760808642646,-1181.21,0.00032299,2]
[391784700,1760808642656,-64739.03160839,0.000323,4]
[391784701,1760808642665,-500.0,0.000323,15]
[391784702,1760808642676,-232638.01013171,0.000323,4]
[391784703,1760808642689,-16531.51632296,0.000323,4]
[391784704,1760808642700,-830.47354533,0.000323,4]
[391784705,1760808642710,-168.9999279,0.000323,2]
[391784706,1760808642720,-12009.42909149,0.000323,2]
[391784707,1760808642731,-819.86034757,0.000323,2]
[391784708,1760808642745,-900.0,0.000323,2]
[391784709,1760808642756,-2988.93535884,0.000323,2]
[391784710,1760808642767,-7092.86162411,0.000323,2]
[391784711,1760808642777,-4033.6906338,0.000323,2]
[391784745,1760808643923,-314.17,0.00029362,30]
[391784746,1760808643933,-229.98,0.00030173,2]
[391784747,1760808643980,-475.136,0.00030173,2]
[391784748,1760808643992,-69.1590181,0.00030173,2]
[391784749,1760808644036,-780.8409819,0.00030173,2]
[391784750,1760808644046,-314.17,0.00030652,30]
[391784751,1760808644055,-314.17,0.00031941,30]
[391784752,1760808644065,-1492.49718646,0.00032152,4]
[391784753,1760808644074,-19993.25748161,0.000323,2]
[391784754,1760808644086,-608.41110405,0.000323,2]
[391784755,1760808644201,-38772.99457634,0.000323,2]
[391784762,1760808646337,-225.59904388,0.00032194,2]
[391784763,1760808646347,-2084.68427908,0.000323,2]
[391784764,1760808646358,-2722.46975,0.000323,2]
[391784765,1760808646369,-933.14790751,0.000323,2]
[391784766,1760808646392,-1093.5530219,0.000323,2]
[391784767,1760808646402,-154.76540965,0.000323,4]
[391784768,1760808646414,-504.00157751,0.000323,4]
[391784769,1760808646426,-688.28919998,0.000323,4]
[391784770,1760808646438,-15264.36105418,0.000323,4]
[391784771,1760808646449,-1838.38373323,0.000323,4]
[391784772,1760808646459,-658.15790404,0.000323,4]
[391784773,1760808646472,-2326.71939812,0.000323,4]
[391784774,1760808646560,-1759.0,0.000323,4]
[391784775,1760808646671,-1673.82434851,0.000323,4]
[391784776,1760808646683,-35729.19838756,0.000323,4]
[391784777,1760808646729,-5494.0,0.000323,4]
[391784790,1760808662460,195.0,0.00027174,120]
[391784791,1760808766058,1160.14,0.00028694,120]
[391784830,1760809832343,-500.0,0.000165,2]
[391784831,1760809832356,-746.27736787,0.000168,2]
[391784832,1760809832365,-257.22329934,0.000169,2]
[391784833,1760809832376,-250.0,0.00017,2]
[391784834,1760809832386,-1000.0,0.00017596,2]
[391784835,1760809832395,-195.0,0.00018082,2]
[391784836,1760809832405,-501.52187375,0.00018692,2]
[391784837,1760809832415,-300.0,0.00019,2]
[391784838,1760809832424,-2192.18217485,0.00019026,2]
[391784839,1760809832433,-2029.0427807,0.0002,2]
[391784840,1760809832445,-1606.54276658,0.0002,2]
[391784841,1760809832456,-468.4946277,0.0002,2]
[391784842,1760809832467,-1359.28629547,0.0002,2]
[391784843,1760809832485,-6108.6692828,0.0002,2]
[391784844,1760809832508,-1065.64063114,0.0002,2]
[391784845,1760809832518,-2547.61520763,0.0002,2]
[391784846,1760809832530,-4110.20728209,0.0002,2]
[391784847,1760809832546,-3347.03212495,0.0002,2]
[391784848,1760809832558,-1650.0,0.0002,2]
[391784849,1760809832570,-302.61183806,0.0002,2]
[391784850,1760809832583,-614.99909713,0.0002,2]
[391784851,1760809832615,-824.38783658,0.0002,2]
[391784852,1760809832626,-513.56988362,0.0002,2]
[391784853,1760809832641,-365.186577,0.0002,2]
[391784854,1760809832652,-1786.633875,0.0002,2]
[391784858,1760809838308,-1969.38724112,0.0002,2]
[391784859,1760809838320,-2253.85077,0.0002,2]
[391784860,1760809838333,-8089.9051702,0.0002,2]
[391784861,1760809838344,-8986.96070945,0.0002,2]
[391784862,1760809838355,-158.464843,0.00022438,2]
[391784863,1760809838365,-158.464843,0.00022685,2]
[391784864,1760809838375,-152.233364,0.00022685,2]
[391784865,1760809838385,-158.464843,0.0002293,2]
[391784866,1760809838404,-430.0,0.00023176,2]
[391784867,1760809838423,-158.464843,0.00023177,2]
[391784868,1760809838433,-152.233364,0.00023177,2]
[391784869,1760809838443,-155.482813,0.00023177,2]
[391784870,1760809838452,-300.0,0.0002355,2]
[391784871,1760809838462,-300.0,0.0002355,2]
[391784872,1760809838471,-2857.39002058,0.00023551,2]
[391784873,1760809838480,-151.0,0.00024285,2]
[391784874,1760809838490,-163.85502309,0.00024285,2]
[391784875,1760809838500,-151.0,0.00024285,2]
[391784876,1760809838510,-151.0,0.00024285,2]
[391784877,1760809838520,-200.0,0.00024285,2]
[391784878,1760809838529,-151.0,0.00024285,2]
[391784879,1760809838541,-151.0,0.00024285,2]
[391784880,1760809838550,-151.0,0.00024285,2]
[391784881,1760809838560,-151.0,0.00024285,2]
[391784882,1760809838570,-151.0,0.00024285,2]
[391784883,1760809838580,-151.0,0.00024285,2]
[391784885,1760809838590,-151.0,0.00024285,2]
[391784887,1760809838599,-151.0,0.00024285,2]
[391784889,1760809838608,-151.0,0.00024285,2]
[391784891,1760809838619,-151.0,0.00024285,2]
[391784893,1760809838629,-151.0,0.00024285,2]
[391784894,1760809838639,-151.0,0.00024285,2]
[391784895,1760809838649,-200.0,0.00024285,2]
[391784896,1760809838658,-200.0,0.00024285,2]
[391784897,1760809838668,-3697.82003868,0.000243,2]
[391784898,1760809838686,-3697.82003868,0.000245,2]
[391784899,1760809838696,-3697.82003868,0.000248,2]
[391784900,1760809838707,-500.0,0.00024868,2]
[391784901,1760809838717,-500.0,0.00024868,2]
[391784902,1760809838726,-500.0,0.00024868,2]
[391784903,1760809838736,-500.0,0.00024868,2]
[391784904,1760809838745,-500.0,0.00024868,2]
[391784905,1760809838754,-500.0,0.00024868,2]
[391784906,1760809838763,-500.0,0.00024868,2]
[391784907,1760809838772,-500.0,0.00024868,2]
[391784908,1760809838782,-500.0,0.00024868,2]
[391784909,1760809838792,-500.0,0.00024868,2]
[391784910,1760809838801,-379.51074665,0.00024868,2]
[391784911,1760809838810,-500.0,0.00024868,2]
[391784912,1760809838819,-7724.62099878,0.00024869,2]
[391784913,1760809838829,-500.0,0.00024932,2]
[391784914,1760809838839,-3697.82003868,0.00025,2]
[391784915,1760809838849,-3697.82003868,0.000253,2]
[391784916,1760809838860,-3697.82003868,0.000255,2]
[391784917,1760809838870,-500.0,0.00025633,2]
[391784918,1760809838879,-501.71292426,0.00025633,2]
[391784919,1760809838889,-500.0,0.00025633,2]
[391784920,1760809838898,-500.0,0.00025633,2]
[391784921,1760809838907,-500.0,0.00025633,2]
[391784922,1760809838916,-500.58167261,0.00025633,2]
[391784923,1760809838926,-3664.13251985,0.00025708,2]
[391784924,1760809838935,-3697.82003868,0.000258,2]
[391784925,1760809838945,-3697.82003868,0.000261,2]
[391784926,1760809838955,-1000.0,0.00026181,2]
[391784927,1760809838964,-3697.82003868,0.000263,2]
[391784928,1760809838974,-5496.19877977,0.00026329,2]
[391784929,1760809838984,-3697.82003868,0.000266,2]
[391784930,1760809838994,-1500.0,0.00026729,2]
[391784931,1760809839003,-177.82,0.00026812,14]
[391784932,1760809839013,-1317.912,0.00026812,14]
[391784933,1760809839023,-2000.0,0.00027277,2]
[391784934,1760809839033,-703.57,0.00027712,2]
[391784935,1760809839042,-344.9,0.00027768,2]
[391784936,1760809839051,-1000.0,0.00027825,5]
[391784937,1760809839061,-285.57,0.0002793,2]
[391784938,1760809839070,-250.0,0.00027989,7]
[391784939,1760809839081,-250.0,0.00028014,2]
[391784940,1760809839091,-501.25982328,0.00028278,2]
[391784941,1760809839103,-498.74017672,0.00028278,2]
[391784942,1760809839113,-242.66,0.00028278,2]
[391784943,1760809839122,-200.0,0.00028278,2]
[391784944,1760809839133,-164.28,0.00028465,2]
[391784945,1760809839143,-151.21165501,0.00028767,30]
[391784946,1760809839160,-23.32834499,0.00028767,30]
[391784947,1760809839171,-300.0,0.00029155,2]
[391784948,1760809839181,-166.66,0.00029215,2]
[391784949,1760809839191,-242.66,0.00029339,2]
[391784950,1760809839202,-500.0,0.00029999,2]
[391784951,1760809839212,-174.54,0.0003007,30]
[391784952,1760809839222,-500.0,0.00030136,2]
[391784953,1760809839231,-166.66,0.00030179,2]
[391784954,1760809839241,-242.66,0.00030399,2]
[391784955,1760809839251,-500.0,0.0003041,2]
[391784956,1760809839260,-115.69165501,0.00030525,2]
[391784957,1760809839272,-184.30834499,0.00030525,2]
[391784958,1760809839281,-1071.94665501,0.00030622,7]
[391784966,1760809840318,-125.05334499,0.00030622,7]
[391784968,1760809840328,-500.0,0.00030684,2]
[391784969,1760809840338,-1195.0,0.00030714,2]
[391784971,1760809840347,-600.0,0.00030724,2]
[391784973,1760809840357,-322.6107,0.00030724,2]
[391784974,1760809840367,-1195.0,0.00030785,7]
[391784976,1760809840377,-164.28,0.00030838,2]
[391784978,1760809840387,-154.03321661,0.00030958,2]
[391784980,1760809840400,-345.96678339,0.00030958,2]
[391784982,1760809840410,-500.0,0.00031021,7]
[391784983,1760809840420,-74.03321661,0.00031021,7]
[391784985,1760809840431,-425.96678339,0.00031021,7]
[391784986,1760809840441,-500.0,0.00031021,7]
[391784987,1760809840450,-166.66,0.00031144,2]
[391784988,1760809840460,-1195.0,0.00031157,2]
[391784989,1760809840470,-501.8975631,0.00031181,2]
[391784990,1760809840479,-500.0,0.00031181,2]
[391784991,1760809840488,-586.14,0.00031181,2]
[391784992,1760809840499,-500.0,0.00031181,2]
[391784993,1760809840508,-500.0,0.00031181,2]
[391784994,1760809840517,-683.53,0.00031181,2]
[391784995,1760809840528,-500.0,0.00031181,2]
[391784996,1760809840540,-500.0,0.00031181,2]
[391784997,1760809840550,-500.0,0.00031181,2]
[391784998,1760809840559,-500.0,0.00031181,2]
[391784999,1760809840568,-500.0,0.00031181,2]
[391785000,1760809840579,-500.0,0.00031181,2]
[391785001,1760809840589,-449.54302241,0.00031181,2]
[391785002,1760809840601,-50.45697759,0.00031181,2]
[391785003,1760809840611,-324.93474054,0.00031181,2]
[391785004,1760809840621,-500.0,0.00031181,2]
[391785005,1760809840630,-500.0,0.00031181,2]
[391785006,1760809840639,-561.0,0.00031181,2]
[391785007,1760809840648,-1000.0,0.000312,2]
[391785008,1760809840656,-500.0,0.00031232,2]
[391785009,1760809840664,-600.0,0.00031272,2]
[391785010,1760809840672,-500.0,0.000313,5]
[391785011,1760809840680,-500.0,0.00031425,5]
[391785012,1760809840688,-500.0,0.00031425,5]
[391785013,1760809840697,-500.0,0.00031425,5]
[391785014,1760809840706,-500.0,0.00031425,5]
[391785015,1760809840715,-500.0,0.00031425,5]
[391785016,1760809840724,-500.0,0.00031425,5]
[391785017,1760809840733,-9999.99,0.00031426,2]
[391785018,1760809840743,-168.0,0.00031433,2]
[391785019,1760809840752,-174.54,0.00031446,30]
[391785020,1760809840762,-586.14,0.00031455,2]
[391785021,1760809840772,-683.53,0.00031455,2]
[391785022,1760809840782,-500.0,0.00031455,2]
[391785023,1760809840791,-500.0,0.00031455,2]
[391785024,1760809840801,-500.0,0.00031455,2]
[391785025,1760809840811,-288.54397512,0.00031455,2]
[391785026,1760809840821,-500.0,0.00031455,2]
[391785027,1760809840832,-242.66,0.0003146,2]
[391785028,1760809840841,-1195.0,0.00031488,2]
[391785029,1760809840850,-1000.0,0.00031491,2]
[391785030,1760809840860,-500.0,0.00031506,2]
[391785031,1760809840871,-1000.0,0.00031604,2]
[391785032,1760809840880,-1309.79507648,0.0003171,2]
[391785033,1760809840890,-150.0,0.00031723,2]
[391785034,1760809840899,-586.14,0.00031729,2]
[391785035,1760809840911,-683.53,0.00031729,2]
[391785036,1760809840920,-500.0,0.00031729,2]
[391785037,1760809840930,-500.0,0.00031729,2]
[391785038,1760809840940,-384.39263319,0.00031729,2]
[391785039,1760809840949,-1000.0,0.00031768,2]
[391785040,1760809840961,-1000.0,0.00031769,2]
[391785041,1760809840970,-507.12104995,0.0003178,2]
[391785042,1760809840980,-1000.0,0.00031813,2]
[391785043,1760809840989,-600.0,0.0003182,2]
[391785044,1760809840999,-1000.0,0.00031832,2]
[391785045,1760809841008,-1000.47029499,0.00031848,5]
[391785046,1760809841018,-150.0,0.00031853,2]
[391785047,1760809841027,-1000.0,0.00031874,2]
[391785048,1760809841036,-1000.0,0.00031881,2]
[391785049,1760809841046,-1000.0,0.00031885,2]
[391785050,1760809841055,-183.43,0.00031893,2]
[391785051,1760809841064,-400.0,0.000319,11]
[391785052,1760809841074,-1000.0,0.000319,2]
[391785053,1760809841084,-785.0,0.00031903,2]
[391785054,1760809841094,-801.775,0.00031903,2]
[391785055,1760809841103,-1410.31,0.00031903,2]
[391785056,1760809841112,-1266.0,0.00031903,2]
[391785057,1760809841122,-1546.0,0.00031903,2]
[391785058,1760809841131,-1309.055,0.00031903,2]
[391785059,1760809841141,-571.0,0.00031903,2]
[391785060,1760809841150,-816.0,0.00031903,2]
[391785061,1760809841159,-2590.0,0.00031903,2]
[391785062,1760809841169,-6446.0,0.00031903,2]
[391785063,1760809841178,-665.908,0.00031903,2]
[391785064,1760809841187,-150.0,0.00031947,2]
[391785065,1760809841196,-150.0,0.00031952,2]